[Event "ROU-ch Women 2018"]
[Site "Olanesti"]
[Date "2018.05.16"]
[Round "3"]
[White "Cosman, Andreea-Marioara"]
[Black "Dragomirescu, Angela"]
[Result "1/2-1/2"]
[ECO "A41"]
[WhiteElo "2130"]
[BlackElo "2272"]
[Annotator "NA"]
[PlyCount "133"]
[EventDate "2018.??.??"]
[EventType "swiss"]
[EventCountry "ROU"]
[SourceTitle "playchess.com"]
[Source "ChessBase"]
[SourceQuality "1"]
[TimeControl "40/5400+30:1800+30"]

1. d4 {[%emt 0:00:00]} d6 {[%emt 0:00:55]} 2. c4 {[%emt 0:00:09]} e5 {[%emt 0:00:49]} 3. Nf3 {[%emt 0:00:37]} e4 {[%emt 0:00:13]} 4. Ng5 {[%emt 0:00:28]} f5 {[%emt 0:00:13]} 5. Nc3 {[%emt 0:01:08]} c6 {[%emt 0:03:22]} 6. g3 {[%emt 0:08:30]} Be7 {[%emt 0:01:17] LiveBook: 55 Games} 7. h4 {[%emt 0:04:28]} Na6 {[%emt 0:02:00]} 8. Bg2 {[%emt 0:10:56] A21: English Opening: 1...e5 2 Nc3} Nf6 {[%emt 0:01:10]} 9. a3 {[%emt 0:09:08]} Nc7 {[%emt 0:02:03]} 10. b4 {[%emt 0:02:17]} (10. d5 $11) 10... O-O {[%emt 0:02:55]} 11. e3 {[%emt 0:11:50]} Ne6 $146 {[%emt 0:14:48]} ({Predecessor:} 11... d5 12. c5 {1-0 (37) Glud,J (2496)-Akdag,D (2218) Denmark 2012}) 12. Nh3 {[%emt 0:11:18]} d5 {[%emt 0:02:20]} 13. Qb3 {[%emt 0:03:40]} a5 {[%emt 0:04:43]} 14. cxd5 {[%emt 0:03:20]} Nxd5 {[%emt 0:16:18]} 15. bxa5 {[%emt 0:14:40]} Nxc3 {[%emt 0:20:48]} 16. Qxc3 {[%emt 0:00:13]} Qxa5 {[%emt 0:04:34]} 17. Qxa5 {[%emt 0:06:33]} Rxa5 {[%emt 0:00:02]} 18. O-O {[%emt 0:02:04]} Bd7 {[%emt 0:00:47]} 19. Rd1 {[%emt 0:02:33]} Rfa8 {[%emt 0:00:18]} 20. Bf1 {[%emt 0:01:15]} Bxa3 {[%emt 0:13:06]} 21. Bc4 {[%emt 0:00:42]} Kf8 {[%emt 0:00:29]} (21... b5 $17 22. Bb3 Kf8) 22. Bd2 {[%emt 0:01:07]} R5a7 {[%emt 0:01:06]} 23. d5 {[%emt 0:02:02]} Nc7 {[%emt 0:03:10]} 24. Ng5 {[%emt 0:02:00]} cxd5 {[%emt 0:00:27]} 25. Rxa3 {[%emt 0:00:46]} Rxa3 {[%emt 0:00:53]} 26. Bb4+ {[%emt 0:00:03]} Ke8 {[%emt 0:00:10]} 27. Bxa3 {[%emt 0:00:10]} Rxa3 {[%emt 0:02:21]} 28. Bxd5 {[%emt 0:00:23]} Rd3 {[%emt 0:00:59]} 29. Bf7+ {[%emt 0:00:23]} Ke7 {[%emt 0:01:46]} 30. Rc1 {[%emt 0:00:34]} Kd6 {[%emt 0:00:53]} (30... Nb5 $17 31. Bg8 h6) 31. Bc4 {[%emt 0:00:41]} Rd2 {[%emt 0:00:20]} 32. Kf1 {[%emt 0:00:35]} b5 {[%emt 0:00:23]} 33. Ke1 {[%emt 0:00:54]} Rb2 {[%emt 0:00:12]} 34. Be2 {[%emt 0:00:24]} Nd5 {[%emt 0:00:41]} 35. Nf7+ {[%emt 0:00:29]} Ke6 {[%emt 0:00:35]} 36. Nd8+ {[%emt 0:00:44]} Ke7 {[%emt 0:00:10]} 37. Nb7 {[%emt 0:00:27]} b4 {[%emt 0:00:24]} 38. Nc5 {[%emt 0:00:38]} Nc3 {[%emt 0:00:17]} 39. Bc4 {[%emt 0:00:03]} Kd6 {[%emt 0:01:24]} 40. Na6 {[%emt 0:00:00]} Be6 {[%emt 0:00:35]} 41. Bxe6 {[%emt 0:05:01]} Ne2 {[%emt 0:21:09]} 42. Rd1+ {[%emt 0:08:00]} Kxe6 {[%emt 0:00:06]} 43. Rd2 {[%emt 0:00:14]} Rxd2 {[%emt 0:00:26]} 44. Kxd2 {[%emt 0:00:07]} Ng1 {[%emt 0:01:47]} 45. Nxb4 {[%emt 0:01:02]} Nf3+ {[%emt 0:01:27]} 46. Ke2 {[%emt 0:01:26]} Kd6 {[%emt 0:01:35]} 47. Nc2 {[%emt 0:03:37]} Kd5 {[%emt 0:00:33]} 48. Ne1 {[%emt 0:01:25]} Ne5 {[%emt 0:00:18]} 49. Nc2 {[%emt 0:01:58]} Nc6 {[%emt 0:00:08]} 50. Ne1 {[%emt 0:01:22]} h6 {[%emt 0:00:11]} 51. Ng2 {[%emt 0:02:27]} g5 {[%emt 0:00:07]} 52. hxg5 {[%emt 0:00:14]} hxg5 {[%emt 0:00:01]} 53. Ne1 {[%emt 0:00:47]} Nb4 {[%emt 0:00:06]} 54. Kd2 {[%emt 0:02:10]} Kc4 {[%emt 0:02:40]} 55. f4 {[%emt 0:01:42]} gxf4 {[%emt 0:02:36]} 56. gxf4 {[%emt 0:00:14]} Kb3 {[%emt 0:03:50]} 57. Ng2 {[%emt 0:01:06]} Nd5 {[%emt 0:00:01]} 58. Ne1 {[%emt 0:02:49]} Nb6 {[%emt 0:00:20]} 59. Ng2 {[%emt 0:00:48]} Nc4+ $11 {[%emt 0:00:55]} 60. Ke2 {[%emt 0:00:06]} Kc2 {[%emt 0:00:18]} 61. Nh4 {[%emt 0:00:17]} Nd6 {[%emt 0:00:05]} 62. Ng6 {[%emt 0:00:29]} Kc3 {[%emt 0:01:07]} 63. Ne7 {[%emt 0:00:17]} Kc2 {[%emt 0:00:08]} 64. Ng6 {[%emt 0:00:07]} Nb5 {[%emt 0:00:59]} 65. Ne7 {[%emt 0:00:28]} Nd6 {[%emt 0:01:14]} 66. Ng6 {[%emt 0:00:15]} Nb5 {[%emt 0:00:01]} 67. Ne7 {[%emt 0:00:08]} 1/2-1/2

[Event "ROU-ch Women 2018"]
[Site "Olanesti"]
[Date "2018.05.16"]
[Round "3"]
[White "Schiopu, Andreea-Alexandra"]
[Black "Ciocan, Maria-Alexandra"]
[Result "0-1"]
[ECO "E63"]
[WhiteElo "1765"]
[BlackElo "2021"]
[Annotator "NA"]
[PlyCount "140"]
[EventDate "2018.??.??"]
[EventType "swiss"]
[EventCountry "ROU"]
[SourceTitle "playchess.com"]
[Source "ChessBase"]
[SourceQuality "1"]
[TimeControl "40/5400+30:1800+30"]

1. d4 {[%emt 0:00:00]} Nf6 {[%emt 0:05:12]} 2. Nf3 {[%emt 0:00:00]} g6 {[%emt 0:00:20]} 3. g3 {[%emt 0:01:32]} Bg7 {[%emt 0:00:12]} 4. Bg2 {[%emt 0:00:15]} O-O {[%emt 0:00:07]} 5. O-O {[%emt 0:00:30]} d6 {[%emt 0:00:05]} 6. c4 {[%emt 0:00:25]} Nc6 {[%emt 0:00:05]} 7. Nc3 {[%emt 0:00:32]} a6 {[%emt 0:00:05]} 8. b3 {[%emt 0:01:50]} Rb8 {[%emt 0:00:25]} 9. Bb2 {[%emt 0:00:40]} b5 {[%emt 0:00:51]} 10. cxb5 {[%emt 0:01:01]} axb5 {[%emt 0:00:07]} 11. Rc1 {[%emt 0:01:05]} b4 {[%emt 0:00:37]} 12. Na4 {[%emt 0:01:59]} Na5 {[%emt 0:01:30]} 13. Qc2 {[%emt 0:01:47]} c6 {[%emt 0:00:23] LiveBook: 11 Games} 14. Nd2 {[%emt 0:00:45]} Ba6 {[%emt 0:07:00]} 15. Nc4 $17 {[%emt 0:02:36]} (15. Rfe1 $11 {remains equal.}) 15... Bb5 {[%emt 0:25:13]} 16. Ba1 {[%emt 0:03:44]} Qc7 {[%emt 0:07:02]} 17. Nab2 {[%emt 0:01:54]} Nd5 {[%emt 0:05:47]} 18. Nd3 {[%emt 0:01:39]} Qa7 {[%emt 0:01:19]} 19. e3 {[%emt 0:05:13]} Rfc8 {[%emt 0:02:35]} 20. Qd2 {[%emt 0:01:00]} Nb6 {[%emt 0:05:47]} 21. Nxb6 {[%emt 0:04:01]} Qxb6 {[%emt 0:00:37]} 22. Rfd1 {[%emt 0:00:17]} Bxd3 {[%emt 0:04:44]} 23. Qxd3 {[%emt 0:00:41]} Nb7 {[%emt 0:00:26]} 24. Rc2 {[%emt 0:00:34]} c5 {[%emt 0:05:16]} 25. Rdc1 {[%emt 0:00:30]} Rd8 {[%emt 0:02:51]} 26. Bxb7 {[%emt 0:00:35]} Qxb7 {[%emt 0:00:09]} 27. dxc5 {[%emt 0:01:14]} dxc5 {[%emt 0:00:06]} 28. Qe2 {[%emt 0:00:24]} Bxa1 {[%emt 0:00:42]} 29. Rxa1 {[%emt 0:00:01]} Rd5 {[%emt 0:04:16]} 30. Rac1 {[%emt 0:00:27]} Qc6 {[%emt 0:05:10]} 31. Qc4 {[%emt 0:01:11]} Qd6 {[%emt 0:01:20]} 32. Qf4 {[%emt 0:01:28]} e5 {[%emt 0:03:26]} 33. Qc4 {[%emt 0:03:02]} Rc8 {[%emt 0:01:35]} 34. Ra1 {[%emt 0:05:35]} Ra8 {[%emt 0:01:49]} 35. Rac1 {[%emt 0:02:15]} Kg7 {[%emt 0:03:51]} 36. Kg2 {[%emt 0:01:56]} Qc6 {[%emt 0:03:31]} 37. f3 {[%emt 0:01:17]} Qd7 {[%emt 0:01:20]} 38. Re1 Rc8 {[%emt 0:02:03]} 39. Ree2 {[%emt 0:04:14]} h5 {[%emt 0:01:19]} 40. Qh4 {[%emt 0:00:00]} Rd1 {[%emt 0:00:41]} 41. Qe4 {[%emt 0:03:07]} Rd5 {[%emt 0:04:37]} 42. Rc4 {[%emt 0:01:12]} Re8 {[%emt 0:03:51]} 43. Qc2 {[%emt 0:00:49]} Qd6 {[%emt 0:12:09]} 44. e4 {[%emt 0:01:08]} Rd1 {[%emt 0:00:27]} 45. Rxc5 {[%emt 0:01:06]} Qd4 {[%emt 0:00:19]} 46. Rf2 {[%emt 0:00:17]} Rd8 {[%emt 0:02:01]} 47. Qc4 {[%emt 0:01:47]} Rd7 {[%emt 0:06:00]} 48. Qxd4 {[%emt 0:02:26]} exd4 {[%emt 0:00:07]} 49. Rcc2 {[%emt 0:00:10]} d3 {[%emt 0:01:33]} 50. Rcd2 {[%emt 0:00:14]} Re1 {[%emt 0:01:27]} 51. Rf1 {[%emt 0:03:46]} Re2+ {[%emt 0:00:11]} 52. Rxe2 {[%emt 0:00:55]} dxe2 {[%emt 0:00:05]} 53. Re1 {[%emt 0:00:03]} Rd2 {[%emt 0:00:12]} 54. Kf2 {[%emt 0:00:05]} Rxa2 {[%emt 0:00:06]} 55. Rxe2 {[%emt 0:00:03]} Ra3 {[%emt 0:00:10]} 56. Rb2 {[%emt 0:00:17]} Ra1 {[%emt 0:03:56]} 57. Ke3 {[%emt 0:00:12]} Rd1 {[%emt 0:00:32]} 58. Rd2 {[%emt 0:01:00]} Rb1 {[%emt 0:00:06]} 59. Rd3 {[%emt 0:00:36]} g5 {[%emt 0:00:38]} 60. Kd4 {[%emt 0:02:46]} Rb2 {[%emt 0:00:17]} 61. Kc4 {[%emt 0:06:22]} Rxh2 {[%emt 0:00:06]} 62. f4 {[%emt 0:00:30]} gxf4 {[%emt 0:00:38]} 63. gxf4 {[%emt 0:00:04]} Rf2 {[%emt 0:01:06]} 64. f5 {[%emt 0:00:20]} Re2 {[%emt 0:00:46]} 65. Rd4 {[%emt 0:00:16]} Kf6 {[%emt 0:01:09]} 66. Kd5 {[%emt 0:00:48]} h4 {[%emt 0:00:25]} 67. Rxb4 {[%emt 0:01:12]} Rd2+ {[%emt 0:00:10]} 68. Kc6 {[%emt 0:00:24]} h3 {[%emt 0:00:21]} 69. Rc4 {[%emt 0:00:17]} h2 {[%emt 0:00:12]} 70. e5+ {[%emt 0:00:15]} Kg5 {[%emt 0:00:34]} 0-1

[Event "ROU-ch Women 2018"]
[Site "Olanesti"]
[Date "2018.05.18"]
[Round "5"]
[White "Sandu, Mihaela"]
[Black "Cosman, Andreea-Marioara"]
[Result "1/2-1/2"]
[ECO "B92"]
[WhiteElo "2258"]
[BlackElo "2130"]
[Annotator "NA"]
[PlyCount "111"]
[EventDate "2018.??.??"]
[EventType "swiss"]
[EventCountry "ROU"]
[SourceTitle "playchess.com"]
[Source "ChessBase"]
[SourceQuality "1"]
[TimeControl "40/5400+30:1800+30"]

1. e4 {[%emt 0:00:00]} c5 {[%emt 0:00:03]} 2. Nf3 {[%emt 0:00:00]} d6 {[%emt 0:00:05]} 3. d4 {[%emt 0:00:00]} cxd4 {[%emt 0:00:05]} 4. Nxd4 {[%emt 0:00:00]} Nf6 {[%emt 0:00:08]} 5. Nc3 {[%emt 0:00:00]} a6 {[%emt 0:00:07]} 6. Be2 {[%emt 0:00:02]} e5 {[%emt 0:00:06]} 7. Nb3 {[%emt 0:00:07]} Be7 {[%emt 0:00:05]} 8. O-O {[%emt 0:00:06]} O-O {[%emt 0:00:05]} 9. Be3 {[%emt 0:00:09]} Be6 {[%emt 0:00:09]} 10. a4 {[%emt 0:00:37]} Nbd7 {[%emt 0:00:14]} 11. a5 {[%emt 0:00:16]} Rc8 {[%emt 0:01:33]} 12. Qd2 {[%emt 0:01:04]} Qc7 {[%emt 0:00:47]} 13. Rfd1 {[%emt 0:00:50]} Rfe8 $11 {[%emt 0:02:19]} 14. h3 {[%emt 0:01:05]} h6 {[%emt 0:00:46]} 15. Bf3 {[%emt 0:03:27]} Bf8 {[%emt 0:01:07]} 16. Qe1 {[%emt 0:07:49]} Be7 {[%emt 0:29:29]} 17. Rd2 {[%emt 0:04:24]} Bf8 {[%emt 0:05:46]} 18. Qd1 {[%emt 0:03:59]} Red8 {[%emt 0:01:01]} 19. Nd5 {[%emt 0:15:46]} Nxd5 {[%emt 0:01:09]} 20. exd5 {[%emt 0:00:05]} Bf5 {[%emt 0:00:03]} 21. c3 {[%emt 0:00:30]} Bh7 {[%emt 0:03:11]} 22. Be2 {[%emt 0:07:55]} Re8 {[%emt 0:12:36]} 23. Rc1 {[%emt 0:04:58]} f5 {[%emt 0:07:15]} 24. f4 {[%emt 0:00:28]} g5 {[%emt 0:04:07]} 25. fxe5 {[%emt 0:01:15]} Nxe5 {[%emt 0:05:05]} 26. Bb6 {[%emt 0:00:50]} Qf7 {[%emt 0:04:58]} 27. Nd4 {[%emt 0:02:21]} Nd7 {[%emt 0:07:12]} 28. Ne6 {[%emt 0:05:53]} Nf6 {[%emt 0:03:12]} 29. Bf3 {[%emt 0:03:06]} f4 {[%emt 0:04:10]} 30. Bd4 {[%emt 0:02:17]} Ne4 {[%emt 0:02:33]} 31. Re2 {[%emt 0:00:48]} Ng3 {[%emt 0:00:25]} 32. Re1 {[%emt 0:00:06]} Bf5 {[%emt 0:02:43]} 33. c4 {[%emt 0:02:16]} h5 {[%emt 0:02:23]} 34. Nxg5 {[%emt 0:02:24]} Qg6 {[%emt 0:00:07]} 35. Ne6 {[%emt 0:01:05]} Bh6 {[%emt 0:00:56]} 36. Kh2 {[%emt 0:04:13]} Kh7 {[%emt 0:00:27]} 37. Bf2 {[%emt 0:02:14]} Rg8 {[%emt 0:01:32]} 38. Qd4 {[%emt 0:02:41]} Rce8 {[%emt 0:00:51]} 39. b4 {[%emt 0:06:15]} Bxe6 {[%emt 0:00:21]} 40. dxe6 {[%emt 0:00:00]} Nf5 {[%emt 0:00:30]} 41. Qd5 {[%emt 0:09:46]} Bg7 {[%emt 0:03:32]} 42. c5 {[%emt 0:03:50]} Be5 {[%emt 0:04:59]} 43. cxd6 {[%emt 0:03:10]} Bxd6 {[%emt 0:00:27]} 44. Qxb7+ {[%emt 0:08:05]} Re7 {[%emt 0:00:57]} 45. Qd5 {[%emt 0:03:20]} Reg7 {[%emt 0:05:56]} 46. Kh1 {[%emt 0:02:05]} Kh8 {[%emt 0:06:37]} 47. Rc6 {[%emt 0:04:07]} Be7 {[%emt 0:06:57]} 48. Be4 {[%emt 0:06:04]} f3 {[%emt 0:01:24]} 49. Bxf3 {[%emt 0:00:28]} Rd8 {[%emt 0:01:38]} 50. Qxd8+ {[%emt 0:10:31]} Bxd8 {[%emt 0:00:05]} 51. e7 {[%emt 0:00:05]} Qe8 {[%emt 0:00:05]} 52. exd8=Q Qxd8 {[%emt 0:00:10]} 53. Rd1 {[%emt 0:01:06]} Rd7 {[%emt 0:01:13]} 54. Rxd7 {[%emt 0:00:38]} Qxd7 {[%emt 0:00:05]} 55. Rxa6 {[%emt 0:00:09]} Qd2 {[%emt 0:00:05]} 56. Kg1 {[%emt 0:01:46]} 1/2-1/2

[Event "ROU-ch Women 2018"]
[Site "Olanesti"]
[Date "2018.05.18"]
[Round "5"]
[White "Lehaci, Miruna-Daria"]
[Black "Sgircea, Silvia-Raluca"]
[Result "1/2-1/2"]
[ECO "B35"]
[WhiteElo "1905"]
[BlackElo "2198"]
[Annotator "NA"]
[PlyCount "50"]
[EventDate "2018.??.??"]
[EventType "swiss"]
[EventCountry "ROU"]
[SourceTitle "playchess.com"]
[Source "ChessBase"]
[SourceQuality "1"]
[TimeControl "40/5400+30:1800+30"]

1. e4 {[%emt 0:00:00]} c5 {[%emt 0:00:07]} 2. Nf3 {[%emt 0:00:00]} Nc6 {[%emt 0:00:08]} 3. d4 {[%emt 0:00:00]} cxd4 {[%emt 0:00:07]} 4. Nxd4 {[%emt 0:00:00]} g6 {[%emt 0:00:17]} 5. Nc3 {[%emt 0:00:00]} Bg7 {[%emt 0:00:08]} 6. Be3 {[%emt 0:00:00]} Nf6 {[%emt 0:00:18]} 7. Bc4 {[%emt 0:00:00]} Qa5 {[%emt 0:01:54]} 8. O-O {[%emt 0:00:05]} O-O {[%emt 0:00:07]} 9. Bb3 {[%emt 0:00:10]} d6 {[%emt 0:00:11]} 10. h3 {[%emt 0:00:05]} Bd7 {[%emt 0:00:44]} 11. Re1 {[%emt 0:00:05]} Rac8 {[%emt 0:03:24]} 12. Nd5 {[%emt 0:01:00]} Nxd5 {[%emt 0:06:13]} 13. exd5 {[%emt 0:00:08]} Ne5 {[%emt 0:00:07]} 14. c3 {[%emt 0:03:33]} Rfe8 {[%emt 0:06:40]} 15. Qe2 {[%emt 0:06:41]} Qc7 {[%emt 0:11:32]} 16. Nb5 {[%emt 0:06:54]} Bxb5 {[%emt 0:01:58]} 17. Qxb5 {[%emt 0:00:06]} a6 {[%emt 0:03:44]} 18. Qb6 {[%emt 0:10:25]} Qxb6 {[%emt 0:01:33]} 19. Bxb6 {[%emt 0:00:05]} Nc4 {[%emt 0:00:21]} 20. Bxc4 {[%emt 0:00:24]} Rxc4 {[%emt 0:00:02]} 21. Re2 {[%emt 0:03:46]} Bf6 {[%emt 0:04:42]} 22. Rc1 {[%emt 0:05:15]} Rec8 {[%emt 0:02:18]} 23. Rce1 {[%emt 0:00:55]} Kf8 {[%emt 0:00:48]} 24. Kf1 {[%emt 0:09:34]} h5 {[%emt 0:05:17]} 25. Re4 {[%emt 0:01:34]} Rxe4 {[%emt 0:13:07]} 1/2-1/2

[Event "ROU-ch Women 2018"]
[Site "Olanesti"]
[Date "2018.05.18"]
[Round "5"]
[White "Ciolacu, Alessia-Mihaela"]
[Black "Ciocan, Maria-Alexandra"]
[Result "1/2-1/2"]
[ECO "A48"]
[WhiteElo "1843"]
[BlackElo "2021"]
[Annotator "NA"]
[PlyCount "106"]
[EventDate "2018.??.??"]
[EventType "swiss"]
[EventCountry "ROU"]
[SourceTitle "playchess.com"]
[Source "ChessBase"]
[SourceQuality "1"]
[TimeControl "40/5400+30:1800+30"]

1. d4 {[%emt 0:00:00]} Nf6 {[%emt 0:01:17]} 2. Nf3 {[%emt 0:00:00]} g6 {[%emt 0:00:06]} 3. Bg5 {[%emt 0:00:00]} Ne4 {[%emt 0:01:11]} 4. Bf4 {[%emt 0:00:45]} c5 {[%emt 0:04:18]} 5. d5 {[%emt 0:05:08]} d6 {[%emt 0:03:27]} 6. Nfd2 {[%emt 0:11:39]} Nxd2 {[%emt 0:01:44]} 7. Qxd2 {[%emt 0:00:45]} Bg7 {[%emt 0:00:31]} 8. Nc3 {[%emt 0:02:23]} Nd7 {[%emt 0:10:13]} 9. e4 {[%emt 0:01:23]} O-O {[%emt 0:00:57]} 10. Be2 {[%emt 0:01:31]} b5 {[%emt 0:07:27]} 11. Bxb5 {[%emt 0:08:26]} Rb8 {[%emt 0:00:36]} 12. Bh6 {[%emt 0:01:44]} Bxh6 {[%emt 0:08:31]} 13. Qxh6 Ne5 {[%emt 0:03:00]} 14. O-O {[%emt 0:09:55]} e6 {[%emt 0:04:05]} 15. dxe6 {[%emt 0:06:59]} Bxe6 {[%emt 0:00:32]} 16. Rad1 {[%emt 0:00:59]} c4 {[%emt 0:12:16]} 17. Qd2 {[%emt 0:04:35]} Qa5 {[%emt 0:02:31]} 18. a4 {[%emt 0:04:25]} Rfd8 {[%emt 0:07:43]} 19. f4 {[%emt 0:12:47]} a6 {[%emt 0:08:13]} 20. fxe5 {[%emt 0:09:10]} dxe5 {[%emt 0:00:15]} 21. Qf2 {[%emt 0:01:51]} axb5 {[%emt 0:00:37]} 22. Qc5 {[%emt 0:00:28]} Rdc8 {[%emt 0:02:37]} 23. Qxe5 {[%emt 0:00:56]} Qa7+ {[%emt 0:00:33]} 24. Qd4 {[%emt 0:00:50]} Qxd4+ {[%emt 0:03:43]} 25. Rxd4 {[%emt 0:00:06]} bxa4 {[%emt 0:02:17]} 26. Nxa4 {[%emt 0:00:18]} Rb4 {[%emt 0:00:39]} 27. b3 {[%emt 0:01:01]} Rcb8 {[%emt 0:00:56]} 28. Nc5 {[%emt 0:01:16]} cxb3 {[%emt 0:00:44]} 29. Rxb4 {[%emt 0:00:13]} Rxb4 {[%emt 0:00:07]} 30. cxb3 {[%emt 0:00:09]} Kg7 {[%emt 0:03:27]} 31. Rf3 {[%emt 0:02:26]} Bg4 {[%emt 0:00:44]} 32. Rd3 {[%emt 0:01:15]} Kf6 {[%emt 0:03:26]} 33. Kf2 {[%emt 0:02:55]} Ke7 {[%emt 0:01:04]} 34. Ke3 {[%emt 0:02:06]} Rb5 {[%emt 0:01:44]} 35. Kd4 {[%emt 0:01:57]} Ra5 {[%emt 0:01:25]} 36. Rd2 {[%emt 0:00:41]} Ra1 {[%emt 0:02:48]} 37. h3 {[%emt 0:01:34]} Bc8 {[%emt 0:00:09]} 38. Kc4 {[%emt 0:02:14]} Rb1 {[%emt 0:02:16]} 39. b4 {[%emt 0:02:02]} h5 {[%emt 0:00:45]} 40. Kb5 {[%emt 0:00:00]} f5 {[%emt 0:00:51]} 41. exf5 {[%emt 0:05:59]} Bxf5 {[%emt 0:00:27]} 42. Ka5 {[%emt 0:00:46]} g5 {[%emt 0:01:07]} 43. b5 {[%emt 0:02:29]} g4 {[%emt 0:00:36]} 44. hxg4 {[%emt 0:03:53]} Bxg4 {[%emt 0:00:22]} 45. b6 {[%emt 0:01:21]} Bc8 {[%emt 0:00:25]} 46. b7 {[%emt 0:01:33]} Bxb7 {[%emt 0:03:36]} 47. Rd7+ {[%emt 0:00:11]} Kf6 {[%emt 0:00:28]} 48. Rxb7 {[%emt 0:01:56]} Rxb7 {[%emt 0:00:58]} 49. Nxb7 {[%emt 0:00:12]} Kf5 {[%emt 0:00:24]} 50. Nd6+ {[%emt 0:02:11]} Kf4 {[%emt 0:00:13]} 51. Nc4 {[%emt 0:01:17]} Kg3 {[%emt 0:00:35]} 52. Ne3 {[%emt 0:00:09]} Kf2 {[%emt 0:00:14]} 53. g4 {[%emt 0:00:39]} hxg4 1/2-1/2

[Event "ROU-ch Women 2018"]
[Site "Olanesti"]
[Date "2018.05.18"]
[Round "5"]
[White "Bogdan, Elizaveta"]
[Black "Panainte, Andreea-Bianca"]
[Result "0-1"]
[ECO "A05"]
[WhiteElo "1805"]
[BlackElo "1894"]
[Annotator "NA"]
[PlyCount "72"]
[EventDate "2018.??.??"]
[EventType "swiss"]
[EventCountry "ROU"]
[SourceTitle "playchess.com"]
[Source "ChessBase"]
[SourceQuality "1"]
[TimeControl "40/5400+30:1800+30"]

1. Nf3 {[%emt 0:00:00]} Nf6 {[%emt 0:00:06]} 2. g3 {[%emt 0:00:00]} d5 {[%emt 0:00:06]} 3. Bg2 {[%emt 0:00:00]} c5 {[%emt 0:00:22]} 4. d3 {[%emt 0:00:03]} Nc6 {[%emt 0:00:08]} 5. O-O {[%emt 0:00:46]} e5 {[%emt 0:00:39]} 6. Nbd2 {[%emt 0:01:46]} Bd6 {[%emt 0:00:49]} 7. e4 {[%emt 0:00:25]} d4 {[%emt 0:01:22]} 8. Nc4 {[%emt 0:04:11]} Bc7 {[%emt 0:00:13]} 9. a4 {[%emt 0:00:19]} O-O {[%emt 0:01:12]} 10. Ng5 {[%emt 0:06:24]} h6 {[%emt 0:03:02]} 11. Nh3 {[%emt 0:02:52]} Nh7 {[%emt 0:05:39]} 12. f4 {[%emt 0:05:11]} f5 {[%emt 0:00:46]} 13. Qe2 {[%emt 0:12:44]} Qe7 {[%emt 0:05:15]} 14. exf5 {[%emt 0:13:41]} Bxf5 {[%emt 0:00:52]} 15. fxe5 {[%emt 0:02:36]} Bxh3 {[%emt 0:05:26]} 16. Bxh3 {[%emt 0:00:28]} Rxf1+ {[%emt 0:01:34]} 17. Bxf1 {[%emt 0:00:39]} Nxe5 {[%emt 0:01:59]} 18. Bf4 {[%emt 0:01:39]} Re8 {[%emt 0:00:30]} 19. Re1 {[%emt 0:05:58]} Nf3+ {[%emt 0:01:43]} 20. Qxf3 {[%emt 0:00:16]} Qxe1 {[%emt 0:00:05]} 21. Bxc7 {[%emt 0:00:28]} Ng5 {[%emt 0:01:13]} 22. Qg2 {[%emt 0:04:45]} Qd1 {[%emt 0:02:30]} 23. Nd2 {[%emt 0:06:34]} Qxc2 {[%emt 0:13:26]} 24. Bf4 {[%emt 0:01:41]} Ne6 {[%emt 0:04:11]} 25. Qd5 {[%emt 0:03:56]} g5 {[%emt 0:08:58]} 26. Bh3 {[%emt 0:04:41]} Qd1+ {[%emt 0:03:43]} 27. Kf2 {[%emt 0:08:31]} g4 {[%emt 0:03:49]} 28. Bg2 {[%emt 0:05:05]} Qxa4 {[%emt 0:04:44]} 29. Bxh6 {[%emt 0:01:34]} Re7 {[%emt 0:03:33]} 30. Be4 {[%emt 0:02:50]} Rf7+ {[%emt 0:00:28]} 31. Kg2 {[%emt 0:00:45]} Qd1 {[%emt 0:01:31]} 32. Bf5 {[%emt 0:02:10]} Qe2+ {[%emt 0:01:36]} 33. Kg1 {[%emt 0:00:21]} Re7 {[%emt 0:00:47]} 34. Bg5 {[%emt 0:01:59]} Re8 {[%emt 0:00:32]} 35. Qd7 {[%emt 0:01:03]} Nxg5 {[%emt 0:00:18]} 36. Qd5+ Ne6 0-1

[Event "ROU-ch Women 2018"]
[Site "Olanesti"]
[Date "2018.05.19"]
[Round "6"]
[White "Peptan, Corina-Isabela"]
[Black "Lehaci, Miruna-Daria"]
[Result "1-0"]
[ECO "A28"]
[WhiteElo "2393"]
[BlackElo "1905"]
[Annotator "NA"]
[PlyCount "52"]
[EventDate "2018.??.??"]
[EventType "swiss"]
[EventCountry "ROU"]
[SourceTitle "playchess.com"]
[Source "ChessBase"]
[SourceQuality "1"]
[TimeControl "40/5400+30:1800+30"]

1. c4 {[%emt 0:00:00]} e5 {[%emt 0:00:04]} 2. Nc3 {[%emt 0:00:00]} Nf6 {[%emt 0:00:04]} 3. Nf3 {[%emt 0:00:20]} Nc6 {[%emt 0:00:04]} 4. e3 {[%emt 0:00:04]} Bb4 {[%emt 0:00:05]} 5. Qc2 {[%emt 0:00:04]} O-O {[%emt 0:00:05]} 6. a3 {[%emt 0:01:03]} Bxc3 {[%emt 0:00:06]} 7. Qxc3 {[%emt 0:00:36]} Re8 {[%emt 0:02:15]} 8. d3 {[%emt 0:19:32]} e4 {[%emt 0:01:40]} 9. dxe4 {[%emt 0:00:42]} Nxe4 {[%emt 0:00:05]} 10. Qc2 {[%emt 0:00:04]} Ng5 {[%emt 0:03:27]} 11. Nxg5 {[%emt 0:02:56]} Qxg5 {[%emt 0:00:05]} 12. Bd2 {[%emt 0:00:06]} d6 {[%emt 0:11:48]} 13. O-O-O {[%emt 0:00:56]} Be6 {[%emt 0:07:15]} 14. f4 {[%emt 0:08:58]} Qe7 {[%emt 0:05:52]} 15. Bd3 {[%emt 0:00:46]} h6 {[%emt 0:00:24]} 16. Bc3 {[%emt 0:02:22]} Bd7 {[%emt 0:02:51]} 17. Rde1 {[%emt 0:05:42]} a6 {[%emt 0:05:32]} 18. g4 {[%emt 0:00:30]} b5 {[%emt 0:00:43]} 19. Rhg1 {[%emt 0:01:20]} Rab8 {[%emt 0:19:54]} 20. g5 {[%emt 0:00:22]} h5 {[%emt 0:00:48]} 21. Bf6 {[%emt 0:21:05]} Qf8 {[%emt 0:00:08]} 22. cxb5 {[%emt 0:01:55]} axb5 {[%emt 0:01:15]} 23. g6 {[%emt 0:00:37]} Bg4 {[%emt 0:06:37]} 24. Qxc6 {[%emt 0:01:16]} gxf6 {[%emt 0:00:36]} 25. h3 {[%emt 0:00:17]} Rb6 {[%emt 0:00:50]} 26. Qc2 {[%emt 0:02:10]} Bd7 {[%emt 0:00:43]} 1-0